{"text_format":"1","workbook":"xlsx","n_sheets":8,"sheets":["magazijn BINNEN","witte CONTAINER","magazijn BUITEN","berner producten","MATERIAAL","WERFMATERIAAL","HERSTELLING","Blad5_2"],"not_rendered":{"charts":0,"images":136,"macros":1,"external_links":0,"defined_names":3,"comments":0,"pivot_tables":0},"unopened":[],"bounds":{"document_bytes":16777216,"sheet_cells":100000,"rows_first":2000,"rows_last":500,"rows_between":2000,"halvings":0,"cell_chars":16384,"cell_head_chars":4096},"cells_cut":0,"cells_raw":0,"read":"whole","date_system":"1900"}

{"sheet":"magazijn BINNEN","index":0,"n_rows":82,"n_cols":14,"rows_kept":82,"cut":false,"hidden":false,"merged":[[3,13,4,13],[0,1,2,10],[5,1,13,1],[5,2,13,2],[5,4,13,4],[5,5,13,5],[15,1,23,1],[15,2,23,2],[15,4,23,4],[15,5,23,5],[24,1,26,1],[24,2,26,2],[24,4,29,4],[24,5,29,5],[27,1,29,1],[27,2,29,2],[30,4,32,4],[30,5,31,5],[33,4,38,4],[39,4,40,4],[41,1,41,4],[42,1,42,4],[43,4,44,4],[45,4,47,4],[50,4,52,4],[51,3,52,3],[56,4,57,4],[59,4,61,4],[62,4,74,4],[64,5,67,5],[75,4,81,4]]}
[null,"MAGAZIJN BINNEN"]
[]
[]
[null,"product","naam","omschrijving","winkel","st/doos","stock min,",null,"STOCK",null,"BESTELLEN","aantal"]
[]
[null,null,"veiligheidsschoen","M40","PLANET EUROPE","1 paar",3,null,4,null,{"$f":"IF(I6<=G6,\"bestellen\",\"ok\")","v":"ok"},{"$f":"ABS(G6-I6)","v":1}]
[null,null,null,"M41",null,null,3,null,4,null,{"$f":"IF(I7<=G7,\"bestellen\",\"ok\")","v":"ok"},{"$f":"ABS(G7-I7)","v":1}]
["PBM",null,null,"M42",null,null,3,null,2,null,"bestellen",1]
[null,null,null,"M43",null,null,3,null,1,null,"bestellen",2]
[null,null,null,"M44",null,null,3,null,2,null,"bestellen",1]
[null,null,null,"M45",null,null,3,null,4,null,"ok",1]
[null,null,null,"M46",null,null,3,null,4,null,"ok",1]
[null,null,null,"M47",null,null,3,null,4,null,"ok",1]
[null,null,null,"M48",null,null,3,null,4,null,"ok",1]
[null,null,"veters",null,"TRENTELS",null,20,null,21,null,"ok",1]
[null,null,"laarzen","M40","PLANET EUROPE","1 paar",3,null,5,null,"ok",2]
[null,null,null,"M41",null,null,3,null,5,null,"ok",2]
[null,null,null,"M42",null,null,3,null,5,null,"ok",2]
[null,null,null,"M43",null,null,3,null,5,null,"ok",2,null," "]
[null,null,null,"M44",null,null,3,null,5,null,"ok",2]
[null,null,null,"M45",null,null,3,null,5,null,"ok",2]
[null,null,null,"M46",null,null,3,null,5,null,"ok",2]
[null,null,null,"M47",null,null,3,null,5,null,"ok",2]
[null,null,null,"M48",null,null,3,null,5,null,"ok",2]
[null,null,"handschoenen","M9","BFH","per doos",3,null,4,null,"ok",1]
[null,null,null,"M10",null,null,3,null,3,null,"bestellen",0]
[null,null,null,"M11",null,null,3,null,10,null,"ok",7]
[null,null,"winter handschoenen","M9",null,null,3,null,20,null,"ok",17]
[null,null,null,"M10",null,null,3,null,20,null,"ok",17]
[null,null,null,"M11",null,null,3,null,20,null,"ok",17]
[null,null,"stoffen handschoen","WERKHANDSCHOEN VAN SPLIT RUNDLEDER MET KATOENEN RUG","TRENTELS","per paar",4,null,0,null,"bestellen",4]
[null,null,"las handschoenen",null,null,null,4,null,3,null,"bestellen",1]
[null,null,"latex handschoenen","maat L",null,"per doos",2,null,5,null,"ok",3]
[null,null,"stofmaskers","FFP2, Fijnstof  per 10 st","BERNER","10st",5,null,1,null,"bestellen",4]
[null,null,"veiligheidsbril","overzet bril",null,1,4,null,0,null,"bestellen",4]
[null,null,"stofbril","volledig gesloten",null,1,4,null,0,null,"bestellen",4]
[null,null,"oorkappen","Pocket, EN 352-1, Polyethyleen (PP), 26dB",null,1,4,null,3,null,"bestellen",1]
[null,null,"oordoppen","EN 352-2, Polyurethaan (PU)",null,"per doos",1,null,2,null,"ok",1]
[null,null,"spuit overal","maat XL",null,1,4,null,5,null,"ok",1]
[null,null,"regenjas XL","REGENJAS 305","TRENTELS",1,4,null,1,null,"bestellen",3]
[null,null,"regenpak XL","REGENPAK 304",null,1,4,null,1,null,"bestellen",3]
[null,null,null,null,null,null," ",null,null,null,null,{"$error":"#VALUE!"}]
["klein gerief",null,null,null,null,null,null,null,null,null,null,0]
[null,null,"spons","tegelwerk","jules frans",1,4,null,0,null,{"$f":"IF(I44<=G44,\"bestellen\",\"ok\")","v":"bestellen"},4]
[null,null,"dweil","60x70cm",null,1,4,null,6,null,{"$f":"IF(I45<=G45,\"bestellen\",\"ok\")","v":"ok"},2]
[null,null,"handzeep","18st per karton","trentels","18st per doos",5,null,15,null,"ok",10]
[null,null,"vochtige doekjes","49630   70st",null,"per pot",3,null,0,null,"bestellen",3]
[null,null,"Multi-clean",null,null,12,5,null,6,null,"ok",1]
[null,null,"posca stift","verkeersborden","jules frans",1,3,null,0,null,"bestellen",3]
[null,null,"ijzerschijven diam 125",null,"bener","25 in box",2,null,5,null,"ok",3]
[null,null,"ijzerschijven diam 230","rhodius","trentels","25 in box",2,null,4,null,"ok",2]
[null,null,"diamandschijf diam 125","csprojects,be",null,"25 in box",2,null,6,null,"ok",4]
[null,null,"diamandschijf diam 230",null,null,"25 in box",2,null,3,null,"ok",1]
[null,null,"kabelbinders",null,"berner","Per 100",4,null,3,null,"bestellen",1]
[null,null,"6 volt batterij","blokbatterij","trentels",1,5,null,0,null,"bestellen",5]
[null,null,"chapzakjes","diepvrieszakjes","colruyt","75per pak",4,null,6,null,"ok",2]
[null,null,"wikkelfolie ","125mm","trentels","per doos",8,null,15,null,"ok",7]
[null,null,"wikkelfolie ","50mm",null,"per doos",8,null,2,null,"bestellen",6]
[null,null,"metskoord","geel",null,1,4,null,14,null,"ok",10]
[null,null,"vetkrijt lyra","6 kleuren","julesfrans",1,1,null,2,null,"ok",1]
[null,null,"afspanlint","rood en wit",null,"per rol",2,null,0,null,"bestellen",2]
[null,null,"bladlood","alle maten",null,"per rol",1,null,0,null,"bestellen",1]
[null,null,"emmers","12l en 20l","trentels",1,4,null,0,null,"bestellen",4]
[null,null,"zieltjes",null,null,1,8,null,5,null,"bestellen",3]
[null,null,"schuurborstel",null,null,"per doos",4,null,3,null,"bestellen",1]
[null,null,"straatveger",null,null,null,4,null,8,null,"ok",4]
[null,null,"zachte borstel",null,null,null,4,null,8,null,"ok",4]
[null,null,"zachte borstel ",null,null,null,4,null,5,null,"ok",1]
[null,null,"zachte steel",null,null,1,5,null,2,null,"bestellen",3]
[null,null,"harde steel",null,null,1,5,null,8,null,"ok",3]
[null,null,"zandshop",null,null,1,2,null,4,null,"ok",{"$f":"ABS(G71-I71)","v":2}]
[null,null,"grond spade",null,null,1,2,null,6,null,"ok",4]
[null,null,"vuilblik",null,null,1,4,null,10,null,"ok",6]
[null,null,"aftrekker",null,null,1,4,null,0,null,"bestellen",4]
[null,null,"handvleugel",null,null,1,4,null,0,null,"bestellen",4]
[null,null,"binddraad rol","1,2mm  ","jules frans","/5kg",4,null,20,null,"ok",16]
[null,null,"bindlassen bundel","12 cm",null,"bundel 1000st",4,null,20,null,"ok",16]
[null,null,"afdekzeil","alle maten",null,1,2,null,2,null,"bestellen",0]
[null,null,"draadstangen","1m lang alle diam,",null,1,5,null,15,null,"ok",10]
[null,null,"betonplaatser","met steel",null,1,2,null,0,null,"bestellen",2]
[null,null,"vloeibeton verdeler","980x300mm",null,1,2,null,0,null,"bestellen",2]
[null,null,"betonsteker",null,null,1,2,null,1,null,"bestellen",1]

{"sheet":"witte CONTAINER","index":1,"n_rows":72,"n_cols":14,"rows_kept":72,"cut":false,"hidden":false,"merged":[[2,14,3,15],[0,0,1,11],[4,3,7,3],[4,5,7,5],[9,2,12,2],[9,3,19,3],[9,5,19,5],[14,2,17,2],[21,2,24,2],[21,3,25,3],[21,5,25,5],[27,3,29,3],[27,5,29,5],[31,2,33,2],[31,3,34,3],[31,5,34,5],[36,3,37,3],[36,5,37,5],[39,2,44,2],[39,3,40,3],[39,5,40,5],[41,3,50,3],[41,5,50,5],[45,2,46,2],[52,0,59,0],[52,1,59,1],[52,3,59,3],[52,5,59,5],[63,3,64,3]]}
["WITTE CONTAINER"]
[]
["product","naam","beschrijving","merk","art nr winkel","winkel","St / doos","stok min",null,"STOCK",null,"Bestellen","aantal"]
[]
[null,"soudafoam low exp","Click & fix","soudal",65073059,"lecot ",24,48,null,1,null,{"$f":"IF(J5<=H5,\"bestellen\",\"ok\")","v":"bestellen"},{"$f":"ABS(H5-J5)","v":47}]
[null,"soudafoam pistool","Click & fix",null,65073064,null,1,4,null,5,null,{"$f":"IF(J6<=H6,\"bestellen\",\"ok\")","v":"ok"},{"$f":"ABS(H6-J6)","v":1}," "]
[null,"soudal click & clean","reinigen pistool",null,65073062,null,1,5,null,4,null,"bestellen",{"$f":"ABS(H7-J7)","v":1}]
[null,"soudafoam FR","vuurbestendig",null,65030326,null,24,10,null,27,null,"ok",17]
[]
[null,"siliconen wit ","afdichten","berner",336340,"berner",24,24,null,24,null,{"$f":"IF(J10<=H10,\"bestellen\",\"ok\")","v":"bestellen"},0]
[null,"siliconen zwart",null,null,336341,null,24,24,null,24,null,{"$f":"IF(J11<=H11,\"bestellen\",\"ok\")","v":"bestellen"},0]
[null,"siliconen grijs",null,null,336338,null,24,24,null,33,null,"ok",9]
[null,"siliconen transparant",null,null,910280,null,24,24,null,26,null,"ok",2]
[null,"acrylaatkit","acrylkit plus",null,168190,null,24,24,null,28,null,"ok",4]
[null,"siliconen jasmijn","sanitair",null,560839,null,24,24,null,24,null,"bestellen",0]
[null,"siliconen manhattan",null,null,528471,null,24,24,null,12,null,"bestellen",12]
[null,"sanitair wit",null,null,367147,null,24,24,null,28,null,"ok",4]
[null,"sanitair transparant",null,null,367137,null,24,24,null,48,null,"ok",24]
[null,"sili kit natuursteen","natuursteen",null,140107,null,24,24,null,18,null,"bestellen",6]
[null,"kit pistool","siliconenkit",null,332191,null,1,5,null,0,null,"bestellen",5]
[]
[null,"lijmen wit","lijmen","tec7",535206000,"trentels",24,24,null,48,null,{"$f":"IF(J22<=H22,\"bestellen\",\"ok\")","v":"ok"},24]
[null,"lijmen zwart",null,null,535106000,null,24,24,null,48,null,{"$f":"IF(J23<=H23,\"bestellen\",\"ok\")","v":"ok"},24]
[null,"lijmen grijs",null,null,535306000,null,24,24,null,48,null,"ok",24]
[null,"lijmen transparant",null,null,10835,null,24,24,null,48,null,"ok",24]
[null,"xtack wit","extreem lijmen",null,534525000,null,24,24,null,25,null,"ok",1]
[]
[null,"Silirub 2","siliconenkit","soudal",65030250,"lecot",24,24,null,48,null,{"$f":"IF(J28<=H28,\"bestellen\",\"ok\")","v":"ok"},24]
[null,"silirub 2S","sanitair wit",null,65030451,null,24,24,null,48,null,{"$f":"IF(J29<=H29,\"bestellen\",\"ok\")","v":"ok"},24]
[null,"silirub P2","overschilderbaar",null,65030260,null,24,24,null,48,null,"ok",24]
[]
[null,"quickbond zwart","plakken","ropamate",10031,"ropamate",24,24,null,25,null,"ok",1]
[null,"quickbond wit",null,null,10011,null,24,24,null,0,null,"bestellen",24]
[null,"quickbond grijs",null,null,10021,null,24,24,null,48,null,"ok",24]
[null,"sealstrike","afwerking siliconen",null,83101,null,12,12,null,30,null,"ok",18]
[]
[null,"chemisch anker","injectiemoretel","spit",451060047,"lecot",15,15,null,1,null,"bestellen",14]
[null,"injectie pistool","injectiemoretel",null,451077151,null,1,3,null,20,null,"ok",17]
[]
[null,"masking tape  2cm","schilderen","berner",null,"berner",null,10,null,7,null,"bestellen",3]
[null,"masking tape 5cm",null,null,null,null,null,10,null,25,null,"ok",15]
[null,"verfborstel 30mm",null,"thiry paints",null,"thirypaints",null,5,null,0,null,"bestellen",5]
[null,"verfborstel 60mm",null,null,null,null,null,5,null,0,null,"bestellen",5]
[null,"Verfrolhouder 10 cm",null,null,null,null,null,2,null,4,null,"ok",2]
[null,"Verfrolhouder 18 cm",null,null,null,null,null,2,null,0,null,"bestellen",2]
[null,"Verfrol 10 cm","vilt",null,null,null,null,10,null,4,null,"bestellen",6]
[null,"Verfrol 18 cm",null,null,null,null,null,10,null,11,null,"ok",1]
[null,"Lakbakje 15 cm","voor rol 10 cm",null,null,null,null,2,null,0,null,"bestellen",2]
[null,"Lakbakje 23 cm","voor rol 18cm",null,null,null,null,2,null,1,null,"bestellen",1]
[null,"Inlegbakje 15 cm","voor rol 10 cm",null,null,null,null,10,null,20,null,"ok",10]
[null,"Inlegbakje 23 cm","voor rol 18cm",null,null,null,null,10,null,20,null,"ok",10]
[]
[null,"epdm","10 cm","berner",363323,"berner",1,3,null,8,null,"ok",5]
[null,null,"20 cm",null,363325,null,1,3,null,8,null,"ok",5]
[null,null,"30cm",null,363327,null,1,3,null,0,null,"bestellen",3]
[null,null,"40cm",null,363329,null,1,3,null,0,null,"bestellen",3]
[null,null,"50cm",null,363331,null,1,3,null,0,null,"bestellen",3]
[null,null,"60cm",null,363332,null,1,3,null,0,null,"bestellen",3]
[null,null,"80cm",null,363334,null,1,3,null,2,null,"bestellen",1]
[null,null,"100cm",null,363335,null,1,3,null,0,null,"bestellen",3]
[null,"tridex","lijmen epdm",null,null,null,12,12,null,0,null,"bestellen",12]
[null,"firestone epdm spray","contactspray","jules frans",null,null,12,12,null,14,null,"ok",2]
[]
[null,"Aspen 2","2tact","trentels",null,null,null,1,null,5,null,"ok",4]
[null,"olie kettingzaag","kroon oil, chainlube xs100",null,null,null,null,1,null,1,null,"bestellen",0]
[null,"wd-40","smeren etc",null,null,null,null,5,null,0,null,"bestellen",5]
[null,"wd40 specialist","boor en snij olie",null,null,null,null,5,null,0,null,"bestellen",5]
[null,"zinkspray","roestwerend","zingaspray",null,null,null,5,null,20,null,"ok",15]
[null,"White-spirit","ontvettingsmiddel",null,null,null,null,2,null,2,null,"bestellen",0]
[null,"chemex","cement resten verwijderen",null,null,null,null,2,null,1,null,"bestellen",1]
[null,"ontkistingsolie","voor bekisting",null,null,null,null,4,null,3,null,"bestellen",{"$f":"ABS(H71-J71)","v":1}]
[null,"mortelolie","voor cement",null,null,null,null,4,null,6,null,"ok",2]

{"sheet":"magazijn BUITEN","index":2,"n_rows":45,"n_cols":11,"rows_kept":45,"cut":false,"hidden":false,"merged":[[0,0,1,9],[4,3,44,3],[24,1,33,1],[34,1,36,1],[2,12,3,13]]}
["MAGAZIJN BUITEN"]
[]
["product","naam","omschrijving","winkel","st/doos","stock min,",null,"STOCK",null,"bestellen","aantal"]
[]
[null,"pallet rijnzand","rievier zand 0-2mm ","jules frans","25kg/40zak",20,null,0,null,{"$f":"IF(H5<=20,\"bestellen\",\"ok\")","v":"bestellen"},{"$f":"ABS(F5-H5)","v":20}]
[null,"pallet metszand","mets/lommelzand",null,"25kg/40zak",20,null,0,null,{"$f":"IF(H6<=20,\"bestellen\",\"ok\")","v":"bestellen"},{"$f":"ABS(F6-H6)","v":20}]
[null,"Pallet grind","rivier grind 4-16mm",null,"25kg/40zak",20,null,0,null,{"$f":"IF(H7<=20,\"bestellen\",\"ok\")","v":"bestellen"},20]
[null,"pallet cement","CEMENT CEM II/B-M 32,5N",null,"25kg/40zak",20,null,0,null,{"$f":"IF(H8<=20,\"bestellen\",\"ok\")","v":"bestellen"},20]
[null,"pallet knauf","knauf goldband",null,"25kg/40zak",5,null,0,null,{"$f":"IF(H9<=5,\"bestellen\",\"ok\")","v":"bestellen"},5]
[null,"bekistingsafstandhouder","RSR 22mm/50x2m=100m (kunststof buis) ",null,"50st",20,null,30,null,{"$f":"IF(H10<=20,\"bestellen\",\"ok\")","v":"ok"},10]
[null,"konus SK zwart","bekistingsafst.hder 22mm (500st) ",null,"500st",50,null,60,null,{"$f":"IF(H11<=50,\"bestellen\",\"ok\")","v":"ok"},10]
[null,"hoeklatten pvc","voor bekisting 2m lang",null,"50st",20,null,40,null,{"$f":"IF(H12<=20,\"bestellen\",\"ok\")","v":"ok"},20]
[null,"dekkingsafstandhouder","Verticaal uni 15mm (alle maten)",null,"1000st",50,null,60,null,{"$f":"IF(H13<=50,\"bestellen\",\"ok\")","v":"ok"},10]
[null,"dekkingsafstandhouder","horizontaal ASK 15 (alle maten)",null,"1000st",50,null,0,null,{"$f":"IF(H14<=50,\"bestellen\",\"ok\")","v":"bestellen"},50]
[null,"uitvulplaatjes 1mm ","1mm wit ",null,"400st",100,null,50,null,{"$f":"IF(H15<=100,\"bestellen\",\"ok\")","v":"bestellen"},50]
[null,"uitvulplaatjes 2mm ","2mm geel",null,"200st",100,null,50,null,{"$f":"IF(H16<=100,\"bestellen\",\"ok\")","v":"bestellen"},50]
[null,"uitvulplaatjes 3mm ","3mm zwart",null,"130st",50,null,50,null,{"$f":"IF(H17<=50,\"bestellen\",\"ok\")","v":"bestellen"},0]
[null,"uitvulplaatjes 4mm ","4mm blauw",null,"100st",50,null,50,null,{"$f":"IF(H18<=50,\"bestellen\",\"ok\")","v":"bestellen"},0]
[null,"uitvulplaatjes 5mm ","5mm rood",null,"80st",20,null,50,null,{"$f":"IF(H19<=20,\"bestellen\",\"ok\")","v":"ok"},30]
[null,"uitvulplaatjes 7mm ","7mm grijs",null,"60st",20,null,50,null,{"$f":"IF(H20<=20,\"bestellen\",\"ok\")","v":"ok"},30]
[null,"uitvulplaatjes 10mm ","10mm groen",null,"40st",20,null,50,null,{"$f":"IF(H21<=20,\"bestellen\",\"ok\")","v":"ok"},30]
[null,"tetra papier","protectiekarton 75m2 1,30m breed",null,"1st",8,null,0,null,{"$f":"IF(H22<=8,\"bestellen\",\"ok\")","v":"bestellen"},8]
[null,"bouwfolie","UCFolie 4m/0.20/50m ",null,"50m/rol",8,null,10,null,{"$f":"IF(H23<=8,\"bestellen\",\"ok\")","v":"ok"},2]
[null,"roofing","deboplast APP 4 T/F  K180 polyester -10x1m / 10m²",null,"10m2",8,null,8,null,{"$f":"IF(H24<=8,\"bestellen\",\"ok\")","v":"bestellen"},0]
[null,"diba folie","10cm x 50m",null,"50m/rol",4,null,5,null,{"$f":"IF(H25<=4,\"bestellen\",\"ok\")","v":"ok"},1]
[null,null,"15cm x 50m",null,"50m/rol",4,null,5,null,"ok",1]
[null,null,"20cm x 50m",null,"50m/rol",4,null,5,null,"ok",1]
[null,null,"30cm x 50m",null,"50m/rol",4,null,5,null,"ok",1]
[null,null,"40cm x 50m",null,"50m/rol",4,null,5,null,"ok",1]
[null,null,"50cm x 50m",null,"50m/rol",4,null,5,null,"ok",1]
[null,null,"60cm x 50m",null,"50m/rol",4,null,5,null,"ok",1]
[null,null,"80cm x 50m",null,"50m/rol",4,null,5,null,"ok",1]
[null,null,"100cm x 50m",null,"50m/rol",4,null,5,null,"ok",1]
[null,null,"120cm x 50m",null,"50m/rol",4,null,5,null,"ok",1]
[null,"Isolatieplug + nagel ","160mm dia10",null,"200st",50,null,100,null,{"$f":"IF(H35<=50,\"bestellen\",\"ok\")","v":"ok"},50]
[null,null,"180mm dia10",null,"200st",50,null,100,null,{"$f":"IF(H36<=50,\"bestellen\",\"ok\")","v":"ok"},50]
[null,null,"200mm dia10",null,"200st",50,null,100,null,{"$f":"IF(H37<=50,\"bestellen\",\"ok\")","v":"ok"},50]
[null,"isolatieclip","Gebu clips oranje ",null,"1000st",50,null,200,null,{"$f":"IF(H38<=50,\"bestellen\",\"ok\")","v":"ok"},150]
[null,"slaganker","Uni-slaganker 300-4 galva ",null,"500st",50,null,200,null,{"$f":"IF(H39<=50,\"bestellen\",\"ok\")","v":"ok"},150]
[null,"bouwhek","3.5x2 round-edge - safety fence/anti klim ",null,"1st",10,null,11,null,{"$f":"IF(H40<=10,\"bestellen\",\"ok\")","v":"ok"},1]
[null,"koppelstuk","verbinden bouwhek",null,"1st",30,null,0,null,{"$f":"IF(H41<=30,\"bestellen\",\"ok\")","v":"bestellen"},30]
[null,"blok bouwhek","Kunststof blok voor bouwhek +borden  (26 kg) ",null,"1st",10,null,11,null,{"$f":"IF(H42<=10,\"bestellen\",\"ok\")","v":"ok"},1]
[null,"bouwhekzeil","winddoorlatend  groen -1.76x3.41m ",null,"1st",10,null,0,null,{"$f":"IF(H43<=10,\"bestellen\",\"ok\")","v":"bestellen"},10]
[null,"aardingslus","koper/lood 35mm² - 85m ",null,"85m/rol",1,null,1,null,{"$f":"IF(H44<=0,\"bestellen\",\"ok\")","v":"ok"},0]
[null,"metsprofiel","hout 2.95 m/uniconstruct ",null,"1st",10,null,11,null,{"$f":"IF(H45<=10,\"bestellen\",\"ok\")","v":"ok"},1]

{"sheet":"berner producten","index":3,"n_rows":30,"n_cols":7,"rows_kept":30,"cut":false,"hidden":false,"merged":[[1,2,2,3],[1,4,2,5]]}
[]
[null,null,"PRODUCTENLIJST :",null,"BERNER"]
[]
[]
[null,null,"product ","naam","beschrijving",null,"art leverancier"]
[]
[null,null,null,"breekmes","alu 18mm",null,129905]
[null,null,null,"afbreekmesjes18 mm","Dispencer 10 st",null,857386]
[null,null,null,"slaglijnpoeder","Blauw 250 gr",null,113772]
[null,null,null,"stofmasker","FFP2, Fijnstof  per 10 st",null,519397]
[null,null,null,"oorkappen","Pocket, EN 352-1, Polyethyleen (PP), 26dB",null,199822]
[null,null,null,"oordoppen","EN 352-2, Polyurethaan (PU)",null,121210]
[null,null,null,"spuitoveral","maat XL",null,171328]
[null,null,null,"timmermanspotlood","rood en blauw",null,209233]
[null,null,null,"metselkoord","geel",null,158070]
[null,null,null,"ijzerschijven","Diam 125",null,38291]
[null,null,null,"platte beitel","sds plus",null,366879]
[null,null,null,"punt beitel","sds plus",null,936739]
[null,null,null,"brede beitel","sds plus",null,366913]
[null,null,null,"platte beitel","sds max",null,366880]
[null,null,null,"punt beitel","sds max",null,51761]
[null,null,null,"brede beitel","sds max",null,366884]
[null,null,null,"metaal boren","geslepen din340 hss",null,8603]
[null,null,null,"ruitensproeistof","fles 1l",null,1187]
[null,null,null,"acrylkit","wit tube",null,168190]
[null,null,null,"aluminium tape","50 mm",null,94391]
[null,null,null,"duct tape","3 kleuren",null,936138]
[null,null,null,"pvc tape","50 mm",null,118246]
[null,null,null,"schilderstape","dik en dun",null,6446]
[null,null,null,"epdm","20cm tot 60 cm"]

{"sheet":"MATERIAAL","index":4,"n_rows":8,"n_cols":3,"rows_kept":8,"cut":false,"hidden":false,"merged":[[0,0,1,2]]}
["MATERIAAL"]
[]
[]
["PRODUCT","OMSCHRIJVING","PLAATS"]
[]
["stofzuiger groot","groot voor water en stof","magazijn"]
["stofzuiger klein","stof","magazijn"]
["stofzuiger klein","water en stof ","marc"]

{"sheet":"WERFMATERIAAL","index":5,"n_rows":6,"n_cols":5,"rows_kept":6,"cut":false,"hidden":false,"merged":[[1,1,2,4]]}
[]
[null,"WERFMATERIAAL"]
[]
[]
[null,"MATERIAAL","AANTAL","OP WERF","MEESTERGAST"]
[null,"Schoren 1,80 dicht","3 bak","bimsem","stefan verhoeven"]

{"sheet":"HERSTELLING","index":6,"n_rows":9,"n_cols":7,"rows_kept":9,"cut":false,"hidden":false,"merged":[[0,0,1,3],[3,0,4,0],[3,1,4,1],[3,2,4,2],[3,3,4,3],[8,6,8,7],[3,4,4,4],[3,6,4,7],[5,6,5,7],[6,6,6,7],[7,6,7,7]]}
["IN HERSTELLING "]
[]
[]
["artikel","omschrijving","datum","Terug ?","bij marc",null,"marc:"]
[]
[null,null,null,null,null,null,"DINSDAG"]
["stofzuiger klein","klein  stof en water","28/01/2019","29/01/2019","ja",null,"van 8u tot 12u"]
[null,null,null,null,null,null,"DONDERDAG"]
[null,null,null,null,null,null,"van 8u tot 12u"]

{"sheet":"Blad5_2","index":7,"n_rows":26,"n_cols":13,"rows_kept":26,"cut":false,"hidden":false,"merged":[[0,0,1,10]]}
[]
[]
[null,"product","naam","omschrijving","winkel","st/doos","stock min,",null,"STOCK",null,"bestellen"]
[]
[null,null,"ddddd",null,null,null,null,null,0,null,{"$f":"IF(I5<=G5,\"bestellen\",\"ok\")","v":"bestellen"},null,{"$f":"ABS(G5-I5)","v":0}]
[null,null,"ffff",null,null,null,null,null,11,null,"ok",null,{"$f":"ABS(G6-I6)","v":11}]
[null,null,"llllll",null,null,null,null,null,11,null,"ok",null,{"$f":"ABS(G7-I7)","v":11}]
[null,null,null,null,null,null,null,null,0,null,"bestellen"]
[null,null,null,null,null,null,null,null,0,null,"bestellen"]
[null,null,null,null,null,null,null,null,0,null,"bestellen"]
[null,null,null,null,null,null,null,null,0,null,"bestellen"]
[null,null,null,null,null,null,null,null,0,null,"bestellen"]
[null,null,null,null,null,null,null,null,2,null,"ok"]
[null,null,null,null,null,null,null,null,2,null,"ok"]
[null,null,null,null,null,null,null,null,6,null,"ok"]
[null,null,"aaa",null,null,null,5,null,8,null,"ok"]
[null,null,null,null,null,null,null,null,10,null,"ok"]
[null,null,null,null,null,null,null,null,10,null,"ok"]
[null,null,null,null,null,null,null,null,10,null,"ok"]
[null,null,null,null,null,null,null,null,11,null,"ok"]
[null,null,"cccc",null,null,null,10,null,11,null,"ok"]
[null,null,null,null,null,null,null,null,11,null,"ok"]
[null,null,null,null,null,null,null,null,11,null,"ok"]
[null,null,"bbbb",null,null,null,10,null,18,null,"ok"]
[null,null,"eeeee",null,null,null,8,null,18,null,"ok"]
[null,null,null,null,null,null,null,null,20,null,"ok"]